fUST/lending_fUST_20250730
["ID","MTS","AMOUNT","RATE_DAILY","PERIOD"]
[375983143,1753809044833,-460.0,0.00019605,2]
[375983145,1753809044842,-460.0,0.00019605,2]
[375983148,1753809044853,-1710.29,0.00019605,2]
[375983149,1753809044863,-944.57,0.00019605,2]
[375983151,1753809044872,-615.67,0.00019605,2]
[375983153,1753809044881,-486.4,0.00019605,2]
[375983155,1753809044890,-6080.05,0.00019605,2]
[375983157,1753809044900,-151.0,0.00019606,2]
[375983159,1753809044910,-460.0,0.00019606,2]
[375983161,1753809044920,-1485.79,0.00019606,2]
[375983163,1753809044930,-460.0,0.00019606,2]
[375983165,1753809044939,-1254.37,0.00019606,2]
[375983168,1753809044949,-460.0,0.00019606,2]
[375983169,1753809044960,-273.54622712,0.00019606,2]
[375983172,1753809044969,-151.0,0.00019607,2]
[375983173,1753809044979,-151.0,0.00019607,2]
[375983176,1753809044988,-811.99,0.00019608,2]
[375983178,1753809044998,-899.32,0.00019608,2]
[375983179,1753809045009,-1641.13,0.00019608,2]
[375983181,1753809045018,-460.0,0.00019608,2]
[375983183,1753809045027,-1346.57,0.00019608,2]
[375983186,1753809045037,-1334.82,0.00019608,2]
[375983188,1753809045047,-249.51129216,0.00019621,2]
[375983190,1753809045057,-151.52475738,0.00019621,2]
[375983191,1753809045066,-151.0,0.00019621,2]
[375983193,1753809045076,-500.0,0.00019621,2]
[375983196,1753809045086,-924.0,0.00019621,2]
[375983198,1753809045095,-500.0,0.00019621,2]
[375983200,1753809045107,-151.0,0.00019621,2]
[375983202,1753809045117,-255.0,0.00019621,2]
[375983203,1753809045127,-151.0,0.00019621,2]
[375983206,1753809045137,-151.0,0.00019621,2]
[375983208,1753809045147,-500.0,0.00019621,2]
[375983209,1753809045157,-151.0,0.00019621,2]
[375983211,1753809045167,-500.0,0.00019621,2]
[375983214,1753809045177,-151.0,0.00019621,2]
[375983215,1753809045187,-454.59805949,0.00019621,2]
[375983218,1753809045197,-151.0,0.00019621,2]
[375983220,1753809045209,-151.0,0.00019621,2]
[375983222,1753809045219,-151.0,0.00019621,2]
[375983224,1753809045229,-168.0,0.00019639,2]
[375983225,1753809045239,-460.0,0.00019867,2]
[375983226,1753809045249,-460.0,0.00019867,2]
[375983227,1753809045258,-2310.63,0.00019867,2]
[375983229,1753809045268,-460.0,0.00019867,2]
[375983231,1753809045277,-1645.72,0.00019867,2]
[375983233,1753809045287,-460.0,0.00019867,2]
[375983235,1753809045296,-460.0,0.00019867,2]
[375983237,1753809045306,-460.0,0.00019867,2]
[375983239,1753809045315,-460.0,0.00019867,2]
[375983240,1753809045325,-1084.71,0.00019867,2]
[375983242,1753809045334,-460.0,0.00019867,2]
[375983244,1753809045344,-460.0,0.00019867,2]
[375983246,1753809045355,-460.0,0.00019867,2]
[375983248,1753809045365,-3932.15,0.00019867,2]
[375983249,1753809045374,-229.67335556,0.00019867,2]
[375983250,1753809045384,-1258.53,0.00019867,2]
[375983251,1753809045393,-460.0,0.00019867,2]
[375983253,1753809045403,-460.0,0.00019867,2]
[375983255,1753809045412,-168.0,0.00019869,2]
[375983257,1753809045421,-151.0,0.00019873,2]
[375983259,1753809045431,-460.0,0.00019878,2]
[375983261,1753809045440,-460.0,0.00019878,2]
[375983263,1753809045450,-460.0,0.00019878,2]
[375983265,1753809045460,-684.52,0.00019878,2]
[375983267,1753809045470,-460.0,0.00019878,2]
[375983269,1753809045480,-460.0,0.00019878,2]
[375983271,1753809045490,-855.59,0.00019878,2]
[375983273,1753809045500,-460.0,0.00019878,2]
[375983274,1753809045510,-494.89,0.00019878,2]
[375983275,1753809045520,-460.0,0.00019878,2]
[375983277,1753809045529,-460.0,0.00019878,2]
[375983279,1753809045539,-460.0,0.00019878,2]
[375983281,1753809045548,-211.046738,0.00019879,2]
[375983283,1753809045557,-460.0,0.00019879,2]
[375983285,1753809045567,-460.0,0.00019879,2]
[375983287,1753809045576,-286.18,0.00019879,2]
[375983290,1753809045585,-1856.9,0.00019879,2]
[375983292,1753809045595,-460.0,0.00019879,2]
[375983294,1753809045606,-460.0,0.00019879,2]
[375983296,1753809045617,-460.0,0.00019879,2]
[375983298,1753809045638,-460.0,0.00019879,2]
[375983300,1753809045648,-460.0,0.00019879,2]
[375983302,1753809045658,-460.0,0.00019879,2]
[375983304,1753809045668,-1710.29,0.00019879,2]
[375983306,1753809045680,-944.57,0.00019879,2]
[375983308,1753809045689,-615.67,0.00019879,2]
[375983310,1753809045699,-486.4,0.00019879,2]
[375983312,1753809045709,-6080.05,0.00019879,2]
[375983314,1753809045719,-168.0,0.00019879,2]
[375983316,1753809045729,-151.0,0.0001988,2]
[375983318,1753809045739,-151.0,0.0001988,2]
[375983320,1753809045750,-460.0,0.0001988,2]
[375983323,1753809045759,-1485.79,0.0001988,2]
[375983325,1753809045768,-460.0,0.0001988,2]
[375983327,1753809045777,-1254.37,0.0001988,2]
[375983329,1753809045787,-460.0,0.0001988,2]
[375983331,1753809045795,-811.99,0.00019882,2]
[375983333,1753809045805,-899.32,0.00019882,2]
[375983335,1753809045814,-1641.13,0.00019882,2]
[375983337,1753809045825,-460.0,0.00019882,2]
[375983339,1753809045835,-1346.57,0.00019882,2]
[375983341,1753809045844,-1334.82,0.00019882,2]
[375983343,1753809045854,-151.0,0.00019889,2]
[375983345,1753809045863,-198.71000557,0.00019895,2]
[375983346,1753809045873,-500.0,0.00019895,2]
[375983349,1753809045882,-924.0,0.00019895,2]
[375983351,1753809045892,-255.0,0.00019895,2]
[375983353,1753809045901,-151.0,0.00019895,2]
[375983355,1753809045911,-151.0,0.00019895,2]
[375983356,1753809045920,-500.0,0.00019895,2]
[375983358,1753809045930,-349.0,0.00019895,2]
[375983360,1753809045939,-290.18241454,0.00019895,2]
[375983362,1753809045949,-151.0,0.00019895,2]
[375983364,1753809045958,-151.0,0.00019895,2]
[375983367,1753809045968,-161.8383241,0.00019895,2]
[375983368,1753809045979,-168.0,0.00019896,2]
[375983370,1753809045988,-150.0,0.00019899,2]
[375983372,1753809045998,-151.0,0.00019899,2]
[375983373,1753809046008,-151.0,0.000199,2]
[375983374,1753809046019,-1432.61823878,0.000199,2]
[375983375,1753809046028,-160.0,0.0001993,2]
[375983376,1753809046038,-189.237563,0.0001997,2]
[375983377,1753809046047,-216.950398,0.0002,2]
[375983378,1753809046056,-300.38131022,0.0002,2]
[375983379,1753809046066,-1432.61823862,0.00020038,2]
[375983380,1753809046076,-168.0,0.00020064,2]
[375983381,1753809046085,-460.0,0.00020141,2]
[375983382,1753809046095,-460.0,0.00020141,2]
[375983383,1753809046106,-2310.63,0.00020141,2]
[375983385,1753809046116,-460.0,0.00020141,2]
[375983387,1753809046125,-1645.72,0.00020141,2]
[375983389,1753809046135,-460.0,0.00020141,2]
[375983391,1753809046145,-460.0,0.00020141,2]
[375983392,1753809046155,-460.0,0.00020141,2]
[375983393,1753809046164,-165.93741311,0.00020141,2]
[375983394,1753809046174,-1084.71,0.00020141,2]
[375983395,1753809046184,-460.0,0.00020141,2]
[375983396,1753809046193,-460.0,0.00020141,2]
[375983397,1753809046203,-460.0,0.00020141,2]
[375983398,1753809046213,-3932.15,0.00020141,2]
[375983399,1753809046223,-1258.53,0.00020141,2]
[375983400,1753809046232,-460.0,0.00020141,2]
[375983401,1753809046242,-460.0,0.00020141,2]
[375983402,1753809046252,-460.0,0.00020152,2]
[375983403,1753809046261,-460.0,0.00020152,2]
[375983404,1753809046271,-460.0,0.00020152,2]
[375983405,1753809046280,-684.52,0.00020152,2]
[375983406,1753809046290,-460.0,0.00020152,2]
[375983407,1753809046299,-460.0,0.00020152,2]
[375983408,1753809046309,-855.59,0.00020152,2]
[375983409,1753809046319,-460.0,0.00020152,2]
[375983410,1753809046328,-494.89,0.00020152,2]
[375983411,1753809046337,-460.0,0.00020152,2]
[375983412,1753809046346,-460.0,0.00020152,2]
[375983413,1753809046358,-460.0,0.00020152,2]
[375983414,1753809046368,-151.0,0.00020153,2]
[375983415,1753809046377,-460.0,0.00020153,2]
[375983416,1753809046386,-441.25938659,0.00020153,2]
[375983417,1753809046396,-1856.9,0.00020153,2]
[375983418,1753809046406,-460.0,0.00020153,2]
[375983419,1753809046416,-460.0,0.00020153,2]
[375983420,1753809046426,-460.0,0.00020153,2]
[375983421,1753809046435,-460.0,0.00020153,2]
[375983423,1753809046445,-460.0,0.00020153,2]
[375983426,1753809046455,-460.0,0.00020153,2]
[375983427,1753809046464,-1710.29,0.00020153,2]
[375983429,1753809046476,-944.57,0.00020153,2]
[375983430,1753809046486,-615.67,0.00020153,2]
[375983432,1753809046496,-486.4,0.00020153,2]
[375983434,1753809046505,-1150.67397889,0.00020153,2]
[375983446,1753809046694,-460.0,0.00020154,2]
[375983448,1753809046704,-450.02513129,0.00020154,2]
[375983450,1753809046716,-460.0,0.00020154,2]
[375983453,1753809046729,-575.76486871,0.00020154,2]
[375983454,1753809046740,-251.44570552,0.00020154,2]
[375983528,1753809607357,1099.1495347,0.0001876,2]
[375983534,1753809661968,19435.60860582,0.0001789,2]
[375983535,1753809661998,5464.39139418,0.0001789,2]
[375983559,1753809914423,310.723127,0.00013699,2]
[375983577,1753810232391,-300.0,0.00018768,2]
[375983578,1753810232401,-145.19476528,0.00018768,2]
[375983788,1753810238552,-671.80523472,0.00018768,2]
[375983790,1753810238562,-445.27476928,0.00018769,2]
[375983801,1753810238661,-14.72523072,0.00018769,2]
[375983803,1753810238671,-1848.42,0.00018769,2]
[375983805,1753810238681,-460.0,0.00018769,2]
[375983807,1753810238691,-1302.87,0.00018769,2]
[375983809,1753810238700,-460.0,0.00018769,2]
[375983811,1753810238710,-460.0,0.00018769,2]
[375983813,1753810238719,-460.0,0.00018769,2]
[375983815,1753810238728,-460.0,0.00018769,2]
[375983817,1753810238738,-922.16,0.00018769,2]
[375983819,1753810238748,-1016.52,0.00018769,2]
[375983821,1753810238758,-460.0,0.00018769,2]
[375983823,1753810238767,-460.0,0.00018769,2]
[375983826,1753810238777,-460.0,0.00018769,2]
[375983827,1753810238790,-460.0,0.00018769,2]
[375983830,1753810238800,-460.0,0.00018769,2]
[375983831,1753810238809,-523.53,0.00018769,2]
[375983832,1753810238818,-460.0,0.00018769,2]
[375983833,1753810238828,-355.0991368,0.00018769,2]
[375983835,1753810238837,-460.0,0.0001877,2]
[375983837,1753810238846,-460.0,0.0001877,2]
[375983839,1753810238855,-273.91261486,0.0001877,2]
[375983841,1753810238864,-497.76,0.0001877,2]
[375983842,1753810238877,-460.0,0.0001877,2]
[375983844,1753810238886,-460.0,0.0001877,2]
[375983846,1753810238895,-460.0,0.0001877,2]
[375983848,1753810238904,-460.0,0.0001877,2]
[375983850,1753810238913,-460.0,0.0001877,2]
[375983852,1753810238923,-460.0,0.0001877,2]
[375983854,1753810238933,-460.0,0.0001877,2]
[375983856,1753810238942,-460.0,0.0001877,2]
[375983859,1753810238953,-460.0,0.0001877,2]
[375983860,1753810238962,-460.0,0.0001877,2]
[375983862,1753810238971,-460.0,0.0001877,2]
[375983865,1753810238980,-460.0,0.0001877,2]
[375983866,1753810238990,-460.0,0.0001877,2]
[375983868,1753810239000,-262.2,0.0001877,2]
[375983870,1753810239009,-460.0,0.0001877,2]
[375983872,1753810239019,-460.0,0.0001877,2]
[375983875,1753810239028,-460.0,0.0001877,2]
[375983876,1753810239041,-572.95,0.0001877,2]
[375983878,1753810239050,-471.1,0.0001877,2]
[375983880,1753810239059,-460.0,0.0001877,2]
[375983882,1753810239068,-383.8194912,0.0001877,2]
[375983885,1753810239078,-460.0,0.0001877,2]
[375983887,1753810239088,-460.0,0.0001877,2]
[375983889,1753810239098,-460.0,0.0001877,2]
[375983890,1753810239108,-460.0,0.0001877,2]
[375983892,1753810239117,-460.0,0.0001877,2]
[375983894,1753810239128,-460.0,0.0001877,2]
[375983896,1753810239137,-460.0,0.0001877,2]
[375983898,1753810239146,-589.36,0.0001877,2]
[375983900,1753810239156,-318.0767341,0.0001877,2]
[375983902,1753810239165,-460.0,0.0001877,2]
[375983904,1753810239175,-460.0,0.0001877,2]
[375983906,1753810239185,-460.0,0.0001877,2]
[375983908,1753810239194,-1425.24,0.0001877,2]
[375983910,1753810239204,-677.34,0.0001877,2]
[375983912,1753810239214,-460.0,0.0001877,2]
[375983914,1753810239223,-513.06,0.0001877,2]
[375983916,1753810239232,-541.92,0.0001877,2]
[375983918,1753810239241,-460.0,0.0001877,2]
[375983920,1753810239251,-460.0,0.0001877,2]
[375983922,1753810239260,-460.0,0.0001877,2]
[375983924,1753810239269,-460.0,0.0001877,2]
[375983926,1753810239278,-460.0,0.0001877,2]
[375983928,1753810239288,-460.0,0.0001877,2]
[375983930,1753810239297,-787.15,0.0001877,2]
[375983932,1753810239306,-460.0,0.0001877,2]
[375983933,1753810239315,-460.0,0.0001877,2]
[375983935,1753810239325,-460.0,0.0001877,2]
[375983937,1753810239334,-460.0,0.0001877,2]
[375983938,1753810239344,-460.0,0.0001877,2]
[375983940,1753810239356,-460.0,0.0001877,2]
[375983942,1753810239365,-460.0,0.0001877,2]
[375983944,1753810239377,-460.0,0.0001877,2]
[375983946,1753810239386,-460.0,0.0001877,2]
[375983948,1753810239397,-460.0,0.0001877,2]
[375983949,1753810239406,-460.0,0.0001877,2]
[375983950,1753810239416,-460.0,0.0001877,2]
[375983951,1753810239426,-460.0,0.0001877,2]
[375983952,1753810239435,-164.80349433,0.0001877,2]
[375983953,1753810239445,-460.0,0.0001877,2]
[375983954,1753810239454,-460.0,0.0001877,2]
[375983955,1753810239463,-460.0,0.0001877,2]
[375983956,1753810239473,-460.0,0.0001877,2]
[375983957,1753810239483,-460.0,0.0001877,2]
[375983958,1753810239493,-460.0,0.0001877,2]
[375983959,1753810239502,-460.0,0.0001877,2]
[375983960,1753810239511,-460.0,0.0001877,2]
[375983961,1753810239520,-460.0,0.00018771,2]
[375983962,1753810239529,-460.0,0.00018771,2]
[375983963,1753810239538,-1235.55,0.00018771,2]
[375983964,1753810239548,-460.0,0.00018771,2]
[375983965,1753810239557,-1097.58,0.00018771,2]
[375983966,1753810239566,-460.0,0.00018771,2]
[375983967,1753810239576,-460.0,0.00018771,2]
[375983968,1753810239585,-1547.42,0.00018771,2]
[375983969,1753810239595,-460.0,0.00018771,2]
[375983970,1753810239604,-460.0,0.00018771,2]
[375983971,1753810239613,-417.12742049,0.00018771,2]
[375983972,1753810239625,-460.0,0.00018771,2]
[375983973,1753810239634,-362.03014753,0.00018771,2]
[375983974,1753810239644,-460.0,0.00018771,2]
[375983975,1753810239654,-460.0,0.00018771,2]
[375983976,1753810239664,-460.0,0.00018771,2]
[375983977,1753810239674,-460.0,0.00018771,2]
[375983978,1753810239683,-460.0,0.00018782,2]
[375983979,1753810239693,-460.0,0.00018782,2]
[375983980,1753810239702,-460.0,0.00018782,2]
[375983981,1753810239711,-1218.83,0.00018783,2]
[375983982,1753810239721,-5327.19,0.00018784,2]
[375983983,1753810239731,-850.57,0.00018784,2]
[375983984,1753810239740,-927.92,0.00018784,2]
[375983985,1753810239749,-460.0,0.00018784,2]
[375983986,1753810239759,-1366.08,0.00018784,2]
[375983988,1753810239933,-1510.28,0.00018784,2]
[375983989,1753810239948,-460.0,0.00018784,2]
[375983990,1753810239958,-302.69733596,0.000189,2]
[375983991,1753810239968,-202.30770372,0.000189,2]
[375983992,1753810239978,-1848.42,0.00019043,2]
[375983993,1753810239988,-460.0,0.00019043,2]
[375983994,1753810239998,-1302.87,0.00019043,2]
[375983995,1753810240008,-460.0,0.00019043,2]
[375983997,1753810240017,-460.0,0.00019043,2]
[375984000,1753810240027,-922.16,0.00019043,2]
[375984003,1753810240040,-1016.52,0.00019043,2]
[375984006,1753810240049,-460.0,0.00019043,2]
[375984009,1753810240059,-460.0,0.00019043,2]
[375984011,1753810240068,-460.0,0.00019043,2]
[375984013,1753810240078,-523.53,0.00019043,2]
[375984014,1753810240087,-460.0,0.00019043,2]
[375984015,1753810240097,-460.0,0.00019044,2]
[375984016,1753810240106,-460.0,0.00019044,2]
[375984017,1753810240118,-460.0,0.00019044,2]
[375984018,1753810240129,-460.0,0.00019044,2]
[375984019,1753810240138,-479.94,0.00019044,2]
[375984020,1753810240148,-460.0,0.00019044,2]
[375984021,1753810240158,-460.0,0.00019044,2]
[375984022,1753810240168,-460.0,0.00019044,2]
[375984023,1753810240178,-460.0,0.00019044,2]
[375984024,1753810240188,-460.0,0.00019044,2]
[375984025,1753810240197,-460.0,0.00019044,2]
[375984026,1753810240207,-460.0,0.00019044,2]
[375984027,1753810240217,-510.69,0.00019044,2]
[375984028,1753810240226,-460.0,0.00019044,2]
[375984029,1753810240235,-460.0,0.00019044,2]
[375984030,1753810240245,-460.0,0.00019044,2]
[375984031,1753810240255,-460.0,0.00019044,2]
[375984032,1753810240264,-460.0,0.00019044,2]
[375984033,1753810240273,-1425.24,0.00019044,2]
[375984035,1753810240283,-677.34,0.00019044,2]
[375984036,1753810240292,-460.0,0.00019044,2]
[375984037,1753810240302,-513.06,0.00019044,2]
[375984038,1753810240312,-541.92,0.00019044,2]
[375984040,1753810240322,-460.0,0.00019044,2]
[375984043,1753810240331,-460.0,0.00019044,2]
[375984044,1753810240340,-460.0,0.00019044,2]
[375984046,1753810240350,-460.0,0.00019044,2]
[375984047,1753810240359,-460.0,0.00019044,2]
[375984048,1753810240371,-787.15,0.00019044,2]
[375984049,1753810240380,-460.0,0.00019044,2]
[375984050,1753810240390,-460.0,0.00019044,2]
[375984051,1753810240399,-460.0,0.00019044,2]
[375984052,1753810240410,-460.0,0.00019044,2]
[375984053,1753810240420,-460.0,0.00019044,2]
[375984054,1753810240429,-460.0,0.00019044,2]
[375984055,1753810240439,-460.0,0.00019044,2]
[375984057,1753810240448,-460.0,0.00019044,2]
[375984059,1753810240458,-460.0,0.00019044,2]
[375984060,1753810240467,-460.0,0.00019044,2]
[375984062,1753810240477,-460.0,0.00019044,2]
[375984064,1753810240486,-460.0,0.00019044,2]
[375984067,1753810240496,-295.29161895,0.00019044,2]
[375984069,1753810240507,-460.0,0.00019044,2]
[375984071,1753810240517,-460.0,0.00019044,2]
[375984073,1753810240526,-460.0,0.00019044,2]
[375984075,1753810240536,-460.0,0.00019044,2]
[375984077,1753810240545,-460.0,0.00019045,2]
[375984079,1753810240555,-460.0,0.00019045,2]
[375984081,1753810240564,-1235.55,0.00019045,2]
[375984083,1753810240572,-460.0,0.00019045,2]
[375984085,1753810240581,-1097.58,0.00019045,2]
[375984087,1753810240591,-460.0,0.00019045,2]
[375984089,1753810240600,-1547.42,0.00019045,2]
[375984090,1753810240609,-460.0,0.00019045,2]
[375984092,1753810240621,-487.14,0.00019045,2]
[375984095,1753810240630,-460.0,0.00019045,2]
[375984097,1753810240640,-460.0,0.00019056,2]
[375984099,1753810240649,-596.3951263,0.00019056,2]
[375984101,1753810240658,-1218.83,0.00019057,2]
[375984102,1753810240667,-2557.25567882,0.00019058,2]
[375984105,1753810240684,-2769.93432118,0.00019058,2]
[375984107,1753810240693,-850.57,0.00019058,2]
[375984109,1753810240702,-927.92,0.00019058,2]
[375984111,1753810240713,-460.0,0.00019058,2]
[375984113,1753810240722,-1057.004541,0.00019058,2]
[375984116,1753810240738,-309.075459,0.00019058,2]
[375984118,1753810240748,-1510.28,0.00019058,2]
[375984120,1753810240758,-396.03725527,0.00019058,2]
[375984122,1753810240770,-63.96274473,0.00019058,2]
[375984124,1753810240779,-800.0,0.00019087,2]
[375984126,1753810240789,-151.43939554,0.00019089,2]
[375984128,1753810240799,-98.11785973,0.00019143,15]
[375984131,1753810240811,-101.88214027,0.00019143,15]
[375984133,1753810240820,-200.0,0.00019143,15]
[375984135,1753810240830,-200.0,0.00019143,15]
[375984137,1753810240839,-200.0,0.00019143,15]
[375984139,1753810240848,-666.0,0.00019178,2]
[375984141,1753810240857,-454.78389508,0.00019178,2]
[375984150,1753810240939,-336.08253761,0.00019178,2]
[375984314,1753810243906,-4209.13356731,0.00019178,2]
[375984315,1753810243916,-379.36,0.00019309,3]
[375984316,1753810243925,-189.68,0.00019309,3]
[375984317,1753810243935,-569.08,0.00019309,3]
[375984318,1753810243945,-1848.42,0.00019317,2]
[375984319,1753810243954,-460.0,0.00019317,2]
[375984320,1753810243963,-1302.87,0.00019317,2]
[375984321,1753810243972,-460.0,0.00019317,2]
[375984322,1753810243982,-460.0,0.00019317,2]
[375984323,1753810243991,-922.16,0.00019317,2]
[375984324,1753810244000,-324.46376972,0.00019317,2]
[375984542,1753810246362,-692.05623028,0.00019317,2]
[375984544,1753810246372,-460.0,0.00019317,2]
[375984546,1753810246381,-460.0,0.00019317,2]
[375984548,1753810246391,-123.04290652,0.00019317,2]
[375985312,1753810968118,316.212647,0.00013699,2]
[375985315,1753810996585,304.7758545,0.00018206,2]
[375985316,1753811052414,459.14646595,0.0001857,2]
[375985317,1753811071912,228.271975,0.0001777,2]
[375985321,1753811141764,896.85370614,0.00026027,120]
[375985325,1753811298703,180.71997,0.00018204,2]
[375985326,1753811299021,209.63165104,0.00018205,2]
[375985368,1753811432925,-189.68,0.0001876,3]
[375985370,1753811432935,-569.04,0.0001876,3]
[375985372,1753811432944,-300.0,0.00018765,2]
[375985374,1753811432954,-300.0,0.00018765,2]
[375985376,1753811432963,-336.14884743,0.00018766,2]
[375985584,1753811438912,-863.85115257,0.00018766,2]
[375985585,1753811438922,-48.93801963,0.00018766,2]
[375985586,1753811438933,-480.0738729,0.00018766,2]
[375985587,1753811438943,-460.0,0.00018766,2]
[375985588,1753811438952,-460.0,0.00018766,2]
[375985589,1753811438962,-262.62421411,0.00018766,2]
[375985590,1753811438972,-164.82481299,0.00018766,2]
[375985591,1753811439070,-295.17518701,0.00018766,2]
[375985592,1753811439080,-454.68865289,0.00018766,2]
[375985593,1753811439091,-5.31134711,0.00018766,2]
[375985594,1753811439101,-460.0,0.00018766,2]
[375985595,1753811439110,-460.0,0.00018766,2]
[375985596,1753811439119,-460.0,0.00018767,2]
[375985597,1753811439128,-460.0,0.00018767,2]
[375985598,1753811439139,-460.0,0.00018767,2]
[375985599,1753811439148,-460.0,0.00018767,2]
[375985600,1753811439158,-460.0,0.00018767,2]
[375985601,1753811439167,-460.0,0.00018767,2]
[375985602,1753811439176,-460.0,0.00018767,2]
[375985603,1753811439185,-460.0,0.00018767,2]
[375985604,1753811439194,-460.0,0.00018767,2]
[375985605,1753811439203,-460.0,0.00018767,2]
[375985606,1753811439212,-460.0,0.00018767,2]
[375985607,1753811439221,-323.89622429,0.00018767,2]
[375985608,1753811439245,-136.10377571,0.00018767,2]
[375985609,1753811439254,-460.0,0.00018767,2]
[375985610,1753811439264,-460.0,0.00018767,2]
[375985611,1753811439273,-461.6137517,0.00018767,2]
[375985612,1753811439283,-460.0,0.00018767,2]
[375985613,1753811439292,-460.0,0.00018767,2]
[375985614,1753811439301,-460.0,0.00018767,2]
[375985615,1753811439311,-460.0,0.00018767,2]
[375985616,1753811439320,-460.0,0.00018767,2]
[375985617,1753811439330,-460.0,0.00018767,2]
[375985618,1753811439339,-460.0,0.00018767,2]
[375985619,1753811439348,-460.0,0.00018767,2]
[375985620,1753811439358,-460.0,0.00018767,2]
[375985621,1753811439367,-460.0,0.00018767,2]
[375985622,1753811439377,-460.0,0.00018767,2]
[375985623,1753811439388,-460.0,0.00018767,2]
[375985624,1753811439397,-460.0,0.00018767,2]
[375985625,1753811439408,-460.0,0.00018767,2]
[375985626,1753811439419,-460.0,0.00018767,2]
[375985627,1753811439428,-460.0,0.00018767,2]
[375985628,1753811439437,-460.0,0.00018767,2]
[375985629,1753811439447,-460.0,0.00018767,2]
[375985630,1753811439457,-460.0,0.00018767,2]
[375985631,1753811439467,-460.0,0.00018767,2]
[375985632,1753811439476,-460.0,0.00018767,2]
[375985633,1753811439486,-460.0,0.00018767,2]
[375985634,1753811439496,-1881.42,0.00018767,2]
[375985635,1753811439505,-460.0,0.00018767,2]
[375985636,1753811439514,-460.0,0.00018767,2]
[375985637,1753811439525,-460.0,0.00018767,2]
[375985638,1753811439535,-460.0,0.00018767,2]
[375985639,1753811439544,-477.79655677,0.00018767,2]
[375985640,1753811439553,-460.0,0.00018767,2]
[375985641,1753811439563,-460.47707093,0.00018767,2]
[375985642,1753811439573,-460.0,0.00018767,2]
[375985643,1753811439582,-460.0,0.00018767,2]
[375985644,1753811439592,-460.0,0.00018767,2]
[375985645,1753811439601,-460.0,0.00018767,2]
[375985646,1753811439610,-460.0,0.00018767,2]
[375985647,1753811439620,-460.0,0.00018767,2]
[375985648,1753811439630,-460.0,0.00018767,2]
[375985649,1753811439641,-460.0,0.00018767,2]
[375985650,1753811439650,-460.0,0.00018767,2]
[375985651,1753811439660,-460.0,0.00018767,2]
[375985652,1753811439835,-506.4,0.00018767,2]
[375985653,1753811439845,-460.0,0.00018767,2]
[375985654,1753811439855,-460.0,0.00018767,2]
[375985655,1753811439864,-1484.03,0.00018767,2]
[375985656,1753811439874,-460.0,0.00018767,2]
[375985657,1753811439883,-460.0,0.00018767,2]
[375985658,1753811439894,-460.0,0.00018767,2]
[375985659,1753811439903,-460.0,0.00018767,2]
[375985660,1753811439912,-460.0,0.00018767,2]
[375985661,1753811439922,-460.0,0.00018767,2]
[375985662,1753811439931,-460.0,0.00018767,2]